lending/lending_fUSD_20250913
["ID","MTS","AMOUNT","RATE_DAILY","PERIOD"]
[385275927,1757728247888,-171.440163,0.00033999,7]
[385275928,1757728247897,-151.0,0.00033999,7]
[385275929,1757728247906,-171.440163,0.00033999,7]
[385275930,1757728247914,-171.440163,0.00033999,7]
[385275931,1757728247924,-151.0,0.00033999,7]
[385275932,1757728247933,-171.440163,0.00033999,7]
[385275933,1757728247942,-167.688441,0.00033999,7]
[385275934,1757728247951,-151.887696,0.00033999,7]
[385275935,1757728247960,-151.0,0.00033999,7]
[385275936,1757728247969,-200.0,0.00033999,2]
[385275937,1757728247979,-60000.0,0.00034,15]
[385275938,1757728247988,-250.0,0.00034,14]
[385275939,1757728247997,-250.0,0.00034,14]
[385275940,1757728248007,-250.0,0.00034,14]
[385275941,1757728248016,-250.0,0.00034,14]
[385275942,1757728248025,-250.0,0.00034,14]
[385275943,1757728248035,-250.0,0.00034,14]
[385275944,1757728248045,-250.0,0.00034,14]
[385275945,1757728248054,-250.0,0.00034,14]
[385275946,1757728248064,-250.0,0.00034,14]
[385275947,1757728248074,-250.0,0.00034,14]
[385275948,1757728248084,-250.0,0.00034,14]
[385275949,1757728248094,-250.0,0.00034,14]
[385275950,1757728248104,-250.0,0.00034,14]
[385275951,1757728248114,-250.0,0.00034,14]
[385275952,1757728248124,-250.0,0.00034,14]
[385275953,1757728248135,-250.0,0.00034,14]
[385275954,1757728248146,-250.0,0.00034,14]
[385275955,1757728248156,-250.0,0.00034,14]
[385275956,1757728248166,-250.0,0.00034,14]
[385275957,1757728248177,-250.0,0.00034,14]
[385275958,1757728248187,-250.0,0.00034,14]
[385275959,1757728248196,-250.0,0.00034,14]
[385275960,1757728248206,-250.0,0.00034,14]
[385275961,1757728248215,-250.0,0.00034,14]
[385275962,1757728248225,-250.0,0.00034,14]
[385275963,1757728248234,-250.0,0.00034,14]
[385275964,1757728248244,-250.0,0.00034,14]
[385275965,1757728248253,-250.0,0.00034,14]
[385275966,1757728248263,-250.0,0.00034,14]
[385275967,1757728248272,-186.4,0.00034,14]
[385275968,1757728248281,-542.58,0.00034,2]
[385275969,1757728248291,-150.0,0.00034,2]
[385275970,1757728248300,-174.72,0.00034,2]
[385275971,1757728248310,-410.73,0.00034,2]
[385275972,1757728248320,-166.97,0.00034,2]
[385275973,1757728248329,-1008.34,0.00034,2]
[385275974,1757728248339,-1191.32,0.00034,2]
[385275975,1757728248349,-542.58,0.00034,2]
[385275976,1757728248359,-542.58,0.00034,2]
[385275977,1757728248370,-542.58,0.00034,2]
[385275978,1757728248379,-150.0,0.00034,2]
[385275979,1757728248389,-410.73,0.00034,2]
[385275980,1757728248398,-166.97,0.00034,2]
[385275981,1757728248408,-174.72,0.00034,2]
[385275982,1757728248418,-542.58,0.00034,2]
[385275983,1757728248427,-1191.32,0.00034,2]
[385275984,1757728248437,-150.0,0.00034,2]
[385275985,1757728248447,-410.73,0.00034,2]
[385275986,1757728248456,-166.97,0.00034,2]
[385275987,1757728248466,-174.72,0.00034,2]
[385275988,1757728248475,-541.56,0.00034,2]
[385275989,1757728248485,-1191.32,0.00034,2]
[385275990,1757728248494,-410.73,0.00034,2]
[385275991,1757728248504,-166.97,0.00034,2]
[385275992,1757728248513,-174.72,0.00034,2]
[385275993,1757728248523,-1191.32,0.00034,2]
[385275994,1757728248533,-166.97,0.00034,2]
[385275995,1757728248543,-174.42,0.00034,2]
[385275996,1757728248552,-496.53,0.00034,2]
[385275997,1757728248562,-410.08,0.00034,2]
[385275998,1757728248572,-151.0,0.00034,7]
[385275999,1757728248582,-151.0,0.00034,7]
[385276000,1757728248591,-155.662168,0.00034,7]
[385276001,1757728248600,-300.901361,0.00034,7]
[385276002,1757728248610,-151.0,0.00034,7]
[385276003,1757728248619,-151.0,0.00034,7]
[385276004,1757728248629,-151.0,0.00034,7]
[385276005,1757728248638,-151.0,0.00034,7]
[385276006,1757728248648,-151.0,0.00034,7]
[385276007,1757728248660,-151.0,0.00034,7]
[385276008,1757728248670,-151.0,0.00034,7]
[385276009,1757728248680,-151.0,0.00034,7]
[385276010,1757728248693,-155.122861,0.00034,7]
[385276011,1757728248712,-151.15287282,0.00034,15]
[385276012,1757728248724,-174.237824,0.00034,7]
[385276013,1757728248734,-174.237824,0.00034,7]
[385276014,1757728248744,-174.237824,0.00034,7]
[385276015,1757728248754,-174.237824,0.00034,7]
[385276016,1757728248765,-151.0,0.00034,7]
[385276017,1757728248774,-151.0,0.00034,7]
[385276018,1757728248784,-151.0,0.00034,7]
[385276019,1757728248794,-227.756966,0.00034,7]
[385276020,1757728248803,-151.0,0.00034,7]
[385276021,1757728248813,-171.440163,0.00034,7]
[385276022,1757728248822,-151.0,0.00034,7]
[385276023,1757728248832,-171.440163,0.00034,7]
[385276024,1757728248841,-171.440163,0.00034,7]
[385276025,1757728248850,-211.639883,0.00034,7]
[385276026,1757728248860,-171.440163,0.00034,7]
[385276027,1757728248870,-151.0,0.00034,7]
[385276028,1757728248880,-151.0,0.00034,7]
[385276029,1757728248890,-151.0,0.00034,7]
[385276030,1757728248900,-151.0,0.00034,7]
[385276031,1757728248909,-2667.3350376,0.00034,30]
[385276032,1757728248919,-421.09,0.00034016,2]
[385276033,1757728248930,-848.81,0.00034016,2]
[385276034,1757728248939,-803.49,0.00034018,2]
[385276035,1757728248949,-604.02,0.00034018,2]
[385276036,1757728248959,-3346.0,0.0003403,7]
[385276037,1757728248968,-504.85560435,0.00034033,2]
[385276038,1757728248978,-500.0,0.00034065,7]
[385276039,1757728248987,-168.0,0.00034068,2]
[385276040,1757728248997,-211.0,0.00034091,2]
[385276041,1757728249007,-200.0,0.00034112,10]
[385276042,1757728249016,-174.237824,0.00034126,7]
[385276043,1757728249026,-174.237824,0.00034126,7]
[385276044,1757728249036,-174.237824,0.00034126,7]
[385276045,1757728249046,-174.237824,0.00034126,7]
[385276046,1757728249055,-198.489361,0.00034126,7]
[385276047,1757728249064,-151.0,0.00034126,7]
[385276048,1757728249074,-151.0,0.00034126,7]
[385276049,1757728249083,-155.90649,0.00034126,7]
[385276050,1757728249093,-171.440163,0.00034126,7]
[385276051,1757728249102,-151.0,0.00034126,7]
[385276052,1757728249112,-171.440163,0.00034126,7]
[385276053,1757728249122,-171.440163,0.00034126,7]
[385276054,1757728249132,-171.440163,0.00034126,7]
[385276055,1757728249141,-465.0,0.00034135,7]
[385276056,1757728249151,-1214.25242215,0.00034137,2]
[385276057,1757728249160,-671.16838128,0.00034169,10]
[385276058,1757728249169,-918.4995,0.00034169,2]
[385276059,1757728249179,-278.721328,0.0003417,7]
[385276060,1757728249188,-151.0,0.0003417,7]
[385276061,1757728249198,-155.034861,0.0003417,7]
[385276062,1757728249208,-151.0,0.0003417,7]
[385276063,1757728249217,-210.428247,0.0003417,7]
[385276064,1757728249227,-151.0,0.0003417,7]
[385276065,1757728249236,-151.0,0.0003417,7]
[385276066,1757728249245,-199.058932,0.0003417,7]
[385276067,1757728249254,-151.0,0.0003417,7]
[385276068,1757728249264,-151.0,0.0003417,7]
[385276069,1757728249273,-179.104053,0.0003417,7]
[385276070,1757728249283,-151.0,0.0003417,7]
[385276071,1757728249293,-151.0,0.0003417,7]
[385276072,1757728249302,-272.346083,0.0003417,7]
[385276073,1757728249311,-151.0,0.0003417,7]
[385276074,1757728249320,-153.159728,0.0003417,7]
[385276075,1757728249330,-174.237824,0.0003417,7]
[385276076,1757728249339,-174.237824,0.0003417,7]
[385276077,1757728249348,-174.237824,0.0003417,7]
[385276078,1757728249357,-174.237814,0.0003417,7]
[385276079,1757728249367,-151.0,0.0003417,7]
[385276080,1757728249376,-151.0,0.0003417,7]
[385276081,1757728249385,-171.440163,0.0003417,7]
[385276082,1757728249394,-151.0,0.0003417,7]
[385276083,1757728249404,-171.440163,0.0003417,7]
[385276084,1757728249413,-171.440163,0.0003417,7]
[385276085,1757728249422,-171.440154,0.0003417,7]
[385276086,1757728249431,-168.0,0.00034182,7]
[385276087,1757728249441,-211.0,0.000342,2]
[385276088,1757728249450,-151.0,0.00034228,7]
[385276089,1757728249459,-151.0,0.00034228,7]
[385276090,1757728249468,-151.0,0.00034228,7]
[385276091,1757728249478,-585.4822003,0.00034249,2]
[385276092,1757728249487,-500.0,0.0003427,7]
[385276093,1757728249497,-5800.0,0.00034274,2]
[385276094,1757728249506,-202.050191,0.00034274,28]
[385276095,1757728249515,-168.0,0.00034342,2]
[385276096,1757728249524,-242.0,0.000344,2]
[385276097,1757728249533,-152.0,0.0003442,5]
[385276098,1757728249542,-158.592,0.00034441,2]
[385276099,1757728249551,-2036.516825,0.00034486,120]
[385276100,1757728249560,-153.0,0.000345,120]
[385276101,1757728249569,-892.0,0.000345,2]
[385276102,1757728249578,-158.82059535,0.00034544,7]
[385276103,1757728249587,-1214.25242215,0.0003455,2]
[385276104,1757728249596,-500.17419288,0.00034557,7]
[385276105,1757728249605,-2549.31,0.00034649,2]
[385276106,1757728249615,-909.2,0.00034649,30]
[385276107,1757728249624,-383.0,0.000347,2]
[385276108,1757728249633,-782.0,0.000347,2]
[385276109,1757728249643,-1000.0,0.00034718,2]
[385276110,1757728249656,-1000.0,0.00034744,2]
[385276111,1757728249664,-1000.0,0.00034744,2]
[385276112,1757728249864,-197.26819849,0.00034748,7]
[385276113,1757728249875,-972.05,0.00034773,7]
[385276114,1757728249884,-5000.0,0.00034775,7]
[385276115,1757728249893,-156.0,0.00034787,5]
[385276116,1757728249903,-406.0,0.00034795,30]
[385276117,1757728249912,-825.369026,0.00034805,2]
[385276118,1757728249923,-501.03978355,0.00034813,5]
[385276119,1757728249932,-706.76184541,0.00034816,2]
[385276120,1757728249942,-1000.0,0.00034819,2]
[385276121,1757728249951,-229.84,0.00034827,2]
[385276122,1757728249960,-4533.0,0.00034835,2]
[385276123,1757728249969,-1425.0,0.0003484,2]
[385276124,1757728249978,-151.09,0.0003484,2]
[385276125,1757728249987,-488.18,0.0003484,2]
[385276126,1757728249995,-301.01,0.0003484,2]
[385276127,1757728250005,-349.1,0.0003484,2]
[385276128,1757728250014,-301.04,0.0003484,2]
[385276129,1757728250023,-307.62,0.0003484,2]
[385276130,1757728250032,-1083.54,0.0003484,2]
[385276131,1757728250042,-333.62,0.0003484,2]
[385276132,1757728250051,-1425.0,0.00034872,2]
[385276133,1757728250060,-1425.0,0.00034875,2]
[385276134,1757728250069,-1425.0,0.00034882,2]
[385276135,1757728250078,-1000.0,0.00034894,2]
[385276136,1757728250087,-15409.23489092,0.000349,2]
[385276137,1757728250096,-2600.0,0.000349,12]
[385276138,1757728250105,-150.0,0.00034935,2]
[385276139,1757728250115,-1214.25242215,0.00034962,2]
[385276140,1757728250124,-150.0,0.00034976,2]
[385276141,1757728250133,-1425.0,0.0003498,2]
[385276142,1757728250142,-164.36712509,0.00034981,2]
[385276143,1757728250152,-150.0,0.00034986,2]
[385276144,1757728250161,-152.60495185,0.00034987,2]
[385276145,1757728250170,-150.0,0.00034988,2]
[385276146,1757728250179,-286.25551503,0.0003499,5]
[385276147,1757728250188,-300.0,0.00034999,10]
[385276148,1757728250197,-187.42456114,0.00034999,30]
[385276149,1757728250205,-1989.83852769,0.00034999,2]
[385276150,1757728250215,-446689.53758228,0.00034999,2]
[385276151,1757728250895,-1177.50064858,0.00034999,2]
[385276152,1757728252102,-2999.99999298,0.00034999,2]
[385276153,1757728252144,-5516.75215518,0.00034999,2]
[385276154,1757728393630,1000.17,0.000197,2]
[385276156,1757728515740,260.18,0.00016745,2]
[385276160,1757729242588,-162.731026,0.00024676,2]
[385276161,1757729242608,-295.96216149,0.000248,2]
[385276164,1757729362597,250.0,0.00015,2]
[385276169,1757729431455,-250.90267267,0.000248,2]
[385276170,1757729431676,-151.0,0.000248,2]
[385276171,1757729431688,-300.0,0.00024898,2]
[385276172,1757729431697,-879.0,0.00024898,2]
[385276173,1757729431706,-500.0,0.00024899,2]
[385276174,1757729431714,-394.98080333,0.00024899,2]
[385276175,1757729431725,-105.01919667,0.00024899,2]
[385276176,1757729431734,-283.0,0.00024899,2]
[385276177,1757729431743,-622.81148345,0.000249,2]
[385276178,1757729431754,-454.0128981,0.000249,2]
[385276179,1757729431784,-6245.36097969,0.000249,2]
[385276180,1757729431793,-156.587,0.00025348,2]
[385276181,1757729431802,-169.43744762,0.00025896,2]
[385276182,1757729431811,-420.0,0.00026976,2]
[385276183,1757729431820,-544.0,0.00027137,2]
[385276184,1757729431829,-250.0,0.0002728,2]
[385276185,1757729431838,-151.54,0.00027397,2]
[385276186,1757729431850,-160.0,0.00028601,2]
[385276187,1757729431861,-212.99211257,0.00028601,2]
[385276188,1757729431870,-160.0,0.00028602,2]
[385276189,1757729431879,-515.60081738,0.00028602,2]
[385276190,1757729431889,-160.0,0.00028602,2]
[385276191,1757729431898,-587.0,0.00029227,2]
[385276192,1757729431908,-4650.87979397,0.0003,30]
[385276193,1757729431918,-163.0,0.00030137,120]
[385276194,1757729431927,-620.45062693,0.00030137,7]
[385276195,1757729431937,-500.0,0.00030913,7]
[385276196,1757729431946,-500.0,0.00031521,7]
[385276197,1757729431956,-823.0,0.00031666,2]
[385276198,1757729431965,-152.0,0.00032357,3]
[385276199,1757729431974,-277.35679052,0.00032386,2]
[385276200,1757729431983,-500.0,0.00032636,7]
[385276201,1757729431993,-500.0,0.00032646,7]
[385276202,1757729432003,-250.0,0.00032753,2]
[385276203,1757729432012,-497.93,0.00032761,2]
[385276204,1757729432021,-580.238,0.00032783,33]
[385276205,1757729432030,-500.0,0.00032795,7]
[385276206,1757729432040,-277.72,0.00032876,2]
[385276208,1757729432049,-300.0,0.00033076,2]
[385276210,1757729432059,-549.64,0.00033133,7]
[385276211,1757729432068,-154.5,0.00033141,2]
[385276212,1757729432077,-150.0,0.00033228,7]
[385276213,1757729432087,-5470.59,0.00033229,2]
[385276215,1757729432096,-234.89,0.00033262,30]
[385276217,1757729432105,-500.0,0.00033336,7]
[385276219,1757729432115,-151.54,0.00033486,2]
[385276221,1757729432124,-287.61899177,0.00033755,2]
[385276222,1757729432134,-500.0,0.00033795,7]
[385276223,1757729432143,-125.18443808,0.00033799,2]
[385276224,1757729432162,-874.81556192,0.00033799,2]
[385276226,1757729432172,-233.25111243,0.00033827,7]
[385276227,1757729432299,-63.86561251,0.00033827,7]
[385276228,1757729432307,-1310.18616096,0.00033848,2]
[385276229,1757729432330,-348.90339008,0.00033848,2]
[385276253,1757729437482,-207.98170746,0.00033228,7]
[385276254,1757729437491,-911.71829254,0.00033848,2]
[385276256,1757729439653,-1038.34136972,0.00033848,2]
[385276257,1757729439665,-1043.73671885,0.00033848,2]
[385276258,1757729439863,-892.36616785,0.00033848,2]
[385276259,1757729439872,-152.0,0.00033964,4]
[385276260,1757729439882,-500.0,0.00033985,7]
[385276261,1757729439891,-200.0,0.00034223,10]
[385276262,1757729439900,-4168.0,0.00034244,2]
[385276263,1757729439909,-730.815,0.00034244,2]
[385276264,1757729439919,-5070.95822111,0.00034244,2]
[385276272,1757729442469,-450.0,0.00034244,2]
[385276273,1757729442522,-652.04177889,0.00034244,2]
[385276274,1757729442531,-1793.05708789,0.00034244,2]
[385276275,1757729442542,-532.03,0.00034244,2]
[385276276,1757729442554,-256.41855536,0.00034244,2]
[385276277,1757729442732,-309.099,0.00034244,2]
[385276279,1757729442890,-1767.7686502,0.00034244,2]
[385276282,1757729445447,-1837.40604049,0.00034244,2]
[385276283,1757729445619,-12357.22066606,0.00034244,2]
[385276284,1757729445629,-5800.0,0.00034249,2]
[385276285,1757729445639,-5800.0,0.00034257,2]
[385276286,1757729445648,-5800.0,0.00034266,2]
[385276287,1757729445659,-5800.0,0.00034274,2]
[385276288,1757729445668,-1152.0,0.00034308,2]
[385276289,1757729445678,-782.0,0.000345,2]
[385276290,1757729445687,-242.0,0.000348,2]
[385276291,1757729445696,-500.0,0.000348,2]
[385276292,1757729445710,-383.0,0.000348,2]
[385276293,1757729445719,-500.0,0.00034867,7]
[385276294,1757729445729,-154.59346817,0.00034944,2]
[385276295,1757729445739,-485.70096886,0.00034956,2]
[385276296,1757729445748,-1618.4933926,0.00034975,2]
[385276297,1757729445758,-874.8661018,0.00034982,2]
[385276298,1757729445767,-1141.2324636,0.00034982,2]
[385276299,1757729445776,-166.8200172,0.00034982,2]
[385276300,1757729445792,-1023.3,0.00034986,2]
[385276301,1757729445806,-505.69,0.00034986,2]
[385276302,1757729445815,-289.67178391,0.00034999,2]
[385276303,1757729445825,-1213.61064022,0.00035,2]
[385276304,1757729445835,-1800.24007371,0.00035,2]
[385276305,1757729445844,-1527.24934746,0.00035,2]
[385276306,1757729445853,-279.24831422,0.00035,2]
[385276307,1757729445874,-4226.92285595,0.00035,2]
[385276308,1757729445883,-151.0,0.00035,14]
[385276309,1757729445892,-3120.95685281,0.00035,2]
[385276310,1757729445902,-2809.86880147,0.00035,7]
[385276311,1757729445912,-874.8661018,0.00035,7]
[385276312,1757729445923,-1001.20674812,0.00035,7]
[385276313,1757729445934,-1347.87961427,0.00035,7]
[385276314,1757729445945,-4246.56722555,0.00035,7]
[385276315,1757729445983,-4705.79999987,0.00035,7]
[385276316,1757729445994,-1143.97892178,0.00035,7]
[385276320,1757729973428,163.94,0.00016967,2]
[385276321,1757730309828,-232.42691809,0.0002,2]
[385276322,1757730311280,4870.05714878,0.000154,2]
[385276323,1757730321908,7501.05318669,9e-05,2]
[385276328,1757730451663,-472.26417574,0.00019949,2]
[385276334,1757730527359,219.77801348,0.0003,120]
[385276335,1757730546107,-27.73582426,0.00019949,2]
[385276336,1757730546131,-500.0,0.00019949,2]
[385276338,1757730546156,-500.0,0.00019949,2]
[385276339,1757730546178,-387.82122666,0.00019949,2]
[385276340,1757730546199,-300.0,0.00019949,2]
[385276341,1757730546221,-3129.45240508,0.0001995,15]
[385276357,1757730631588,-300.0,0.00019949,2]
[385276359,1757730631598,-1598.66550921,0.0001995,15]
[385276367,1757730631699,-917.23780315,0.0001995,15]
[385276368,1757730631845,-8353.75330732,0.0001995,15]
[385276386,1757730637618,-4397.20991336,0.0001995,15]
[385276387,1757730637628,-258.40126941,0.00019999,2]
[385276388,1757730637638,-44.02889796,0.00019999,2]
[385276389,1757730637724,-243.38638815,0.00019999,2]
[385276390,1757730637734,-200.32531106,0.00019999,2]
[385276391,1757730637744,-2248.378769,0.0002,2]
[385276417,1757730639788,-14599.7,0.0002,2]
[385276555,1757730642838,-59.94919979,0.0002,2]
[385276566,1757730646191,-2494.98270614,0.0002,2]
[385276569,1757730958429,164.72,0.00015753,2]
[385276571,1757731591631,-161.76,0.00019999,4]
[385276572,1757731591653,-219.0,0.00019999,2]
[385276573,1757731591681,-176.37674383,0.00019999,2]
[385276574,1757731607419,161.38461222,0.00015,3]
[385276577,1757731646085,-160.21,0.00019999,2]
[385276578,1757731646108,-250.0,0.00019999,2]
[385276579,1757731646133,-323.62325617,0.00019999,2]
[385276580,1757731646159,-500.0,0.00019999,2]
[385276581,1757731646187,-410.30203384,0.00019999,2]
[385276593,1757731831827,-300.0,0.00019999,2]
[385276594,1757731831838,-128.48008882,0.00019999,2]
[385276595,1757731831847,-649.0984815,0.0002,2]
[385276596,1757731831859,-901.10174643,0.0002,2]
[385276597,1757731831923,-11594.26800001,0.0002,2]
[385276598,1757731831935,-2931.19076857,0.0002,2]
[385276599,1757731831946,-11825.63027556,0.0002,2]
[385276600,1757731831957,-2558.97535438,0.0002,5]
[385276601,1757731832144,-2901.33309491,0.0002,5]
[385276602,1757731832156,-523.38584556,0.0002,5]
[385276604,1757731832248,-529.52105118,0.0002,5]
[385276606,1757731832258,-3911.13019905,0.00021,2]
[385276608,1757731832268,-164.72,0.00021004,2]
[385276610,1757731832278,-420.0,0.00021777,2]
[385276612,1757731832287,-250.0,0.00021999,2]
[385276614,1757731832297,-1978.45874977,0.00022,15]
[385276625,1757731838022,-513.23408766,0.00022,15]
[385276633,1757731840079,-1529.0169867,0.00022,15]
[385276634,1757731840090,-318.8230133,0.00022,15]
[385276635,1757731840101,-576.96831648,0.00022,15]
[385276645,1757731843149,-61.90408264,0.00022,15]
[385276813,1757731846003,-611.84159382,0.00022,15]
[385276814,1757731859553,100000.0,0.00019,2]
[385276815,1757731873731,100000.0,0.00024,30]
[385276817,1757731980557,164.72,0.00014056,2]
[385276818,1757732144208,-2894.6824,0.00020175,2]
[385276819,1757732152092,1491.3974949,0.00020175,2]
[385276820,1757732324092,226.191026,0.00020176,2]
[385276821,1757732327530,-152.21823229,0.00021899,2]
[385276822,1757732362087,1548.0,0.000218,5]
[385276823,1757732538319,159.0,0.0003013,120]
[385276824,1757732831092,-268.0,0.00021994,2]
[385276825,1757732831116,-500.0,0.00021995,2]
[385276826,1757732831138,-500.0,0.00021995,2]
[385276827,1757732831161,-500.0,0.00021995,2]
[385276828,1757732831186,-500.0,0.00021995,2]
[385276829,1757732831211,-500.0,0.00021995,2]
[385276830,1757732831233,-353.87821227,0.00021995,2]
[385276831,1757732831252,-155.36171835,0.00022,15]
[385276832,1757732910821,-1777.23111263,0.00022,15]
[385276833,1757732910844,-1491.3974949,0.00022821,2]
[385276834,1757732910865,-226.191026,0.00022826,2]
[385276835,1757732910886,-2894.6824,0.00022838,2]
[385276836,1757732910908,-208.809247,0.00023007,2]
[385276837,1757732910929,-506.0,0.00023123,2]
[385276838,1757732916909,317.09757914,0.0002282,2]
[385276839,1757732920776,164.9,0.00014784,2]
[385276840,1757732924728,-2155.69114033,0.00023357,2]
[385276841,1757732965123,-2174.2869294,0.00023357,2]
[385276842,1757732965144,-250.0,0.00023679,2]
[385276843,1757732965165,-294.95649575,0.00024,2]
[385276844,1757732965185,-584.50843568,0.00024057,2]
[385276845,1757732965458,-250.0,0.00024196,2]
[385276846,1757732965620,-564.55042715,0.00024656,2]
[385276847,1757732965641,-263.437168,0.00024658,7]
[385276848,1757732965664,-463.27068602,0.000249,2]
[385276849,1757733006783,2368.01630648,0.0002,2]
[385276926,1757733033138,-7116.83851288,0.000249,2]
[385276927,1757733033147,-1491.3974949,0.00025467,2]
[385276928,1757733033158,-226.191026,0.00025475,2]
[385276929,1757733033167,-681.53711582,0.000255,2]
[385276930,1757733033224,-1146.5,0.000255,2]
[385276944,1757733037936,-1066.64528418,0.000255,2]
[385276945,1757733037946,-250.0,0.00025693,2]
[385276946,1757733037955,-250.0,0.00026447,2]
[385276947,1757733037964,-500.0,0.0002663,2]
[385276948,1757733037974,-163.28424813,0.00027137,2]
[385276949,1757733037986,-366.71575187,0.00027137,2]
[385276950,1757733037994,-278.55788261,0.0002739,4]
[385276951,1757733038003,-250.0,0.0002739,2]
[385276952,1757733038013,-155.85,0.00027397,2]
[385276953,1757733038023,-520.59927653,0.00028114,2]
[385276954,1757733038263,-364.13776999,0.00028114,2]
[385276955,1757733038290,-569.6427759,0.00028114,2]
[385276956,1757733038306,-37.01767248,0.00028114,2]
[385276957,1757733038315,-226.191026,0.00028125,2]
[385276958,1757733038324,-2894.6824,0.00028163,2]
[385276959,1757733038333,-153.768602,0.00028163,7]
[385276960,1757733038342,-194.93622,0.00028163,7]
[385276961,1757733038351,-151.0,0.00028163,7]
[385276962,1757733038360,-221.93189,0.00028163,7]
[385276964,1757733038369,-217.803198,0.00028163,7]
[385276965,1757733038378,-221.93189,0.00028163,7]
[385276966,1757733038387,-1935.33,0.00028438,2]
[385276967,1757733038396,-201.19070028,0.00028442,2]
[385276968,1757733038405,-180.88088859,0.00028442,2]
[385276969,1757733038414,-151.0,0.00028442,7]
[385276970,1757733038423,-221.93189,0.00028442,7]
[385276971,1757733038432,-221.93189,0.00028442,7]
[385276972,1757733038441,-375.0,0.00028442,2]
[385276973,1757733038450,-151.0,0.00028442,7]
[385276974,1757733038460,-151.0,0.00028442,7]
[385276975,1757733038469,-9732.33693917,0.00028443,2]
[385276976,1757733038479,-7921.9568814,0.00028463,7]
[385277003,1757733040197,-312.0,0.000259,5]
[385277005,1757733040207,-1425.95,0.00028463,7]
[385277160,1757733043630,-8832.0931186,0.00028463,7]
[385277162,1757733043639,-151.0,0.00028463,7]
[385277164,1757733043648,-151.967863,0.00028463,7]
[385277166,1757733043657,-153.261988,0.00028463,7]
[385277168,1757733043666,-151.0,0.00028463,7]
[385277170,1757733043676,-197.721138,0.00028463,7]
[385277172,1757733043686,-1134.42829204,0.000286,2]
[385277188,1757733043868,-869.56603868,0.000286,2]
[385277190,1757733043878,-217.07712528,0.0002861,10]
[385277191,1757733043887,-160.0,0.0002871,2]
[385277193,1757733043898,-377.0,0.0002899,2]
[385277194,1757733043907,-215.31,0.00029142,30]
[385277196,1757733043916,-782.11051744,0.000294,2]
[385277198,1757733043928,-74.88948256,0.000294,2]
[385277199,1757733043937,-164.9,0.00029568,2]
[385277201,1757733043946,-3214.59,0.00029612,2]
[385277202,1757733043955,-151.0,0.00029624,7]
[385277204,1757733043964,-151.0,0.00029624,7]
[385277205,1757733043973,-117.50307985,0.00029624,7]
[385277209,1757733044019,-80.21805815,0.00029624,7]
[385277211,1757733044028,-564.07,0.00029624,2]
[385277213,1757733044037,-576.27,0.00029677,2]
[385277214,1757733044046,-4012.04,0.00029679,7]
[385277216,1757733044056,-152.66,0.00029681,2]
[385277218,1757733044065,-283.35703381,0.0003,7]
[385277219,1757733044074,-59000.0,0.0003,7]
[385277221,1757733044088,-7043.51,0.00030137,30]
[385277237,1757733044306,-151.0,0.00030137,7]
[385277239,1757733044316,-151.0,0.00030137,7]
[385277241,1757733044325,-197.721138,0.00030137,7]